Cogmind - Beta 13 @@@ ROGUE MODE // 2024.03.13 @ 23:59:44 // Winter2019/RPGLIKE Player: H3-RMN Result: Destroyed by G-47 Trooper with Particle Gun Performance ------------- Evolutions (2) 1000 Regions Visited (3) 600 Robots Destroyed (68) 340 Value Destroyed (2351) 2351 Prototype IDs (6) 120 Alien Tech Used (0) 0 Bonus (219) 219 TOTAL SCORE: 4630 Bonus ------- High Alert Combat Kills 268 Friendly Fire -49 Cogmind --------- Core Integrity 0/900 Matter 300/300 Energy 49/140 System Corruption 0% Temperature Cool (63) Movement Flying (40) Location -8/Materials Parts ------- > --- POWER (2) -------- Backup Power I Light Deuterium Engine > --- PROPULSION (4) --- Flightbrick > --- UTILITY (3+3) ---- Machine Analyzer (+) Improved Terrain Scanner Light Armor Plating Improved Shield Generator Hacking Suite (+) > --- WEAPON (2) ------- Shock Rifle Shock Rifle > --- INVENTORY (4) ---- Small Matter Pod (50) Precision Beam Rifle Gauss Rifle Mini Grenade Launcher Peak State ------------ > --- POWER ------------ Backup Power I Light Deuterium Engine > --- PROPULSION ------- Flightbrick > --- UTILITY ---------- Machine Analyzer Improved Terrain Scanner Light Armor Plating Improved Shield Generator Hacking Suite > --- WEAPON ----------- Shock Rifle Shock Rifle > --- INVENTORY -------- Small Matter Pod Precision Beam Rifle Gauss Rifle Mini Grenade Launcher [Rating: 61] Favorites ----------- Power Ion Engine Engine Ion Engine Propulsion Aluminum Leg Treads Light Treads Leg Aluminum Leg Wheel Subdweller Monowheel Flight Unit Flightbrick Utility Improved Terrain Scanner Device Improved Terrain Scanner Processor Machine Analyzer Hackware Hacking Suite Protection Scrap Shield Weapon Barrage Gun Energy Gun Subdweller Laser Ballistic Gun Barrage Gun Ballistic Cannon Battle Cannon Impact Weapon Hammer Build | -11 -10 -10 -8 ------- Run | Yrd Mat Sub Mat Slots Evolved 7 | 3 . 1 3 Power 1 | . . . 1 Propulsion 3 | 1 . . 2 Utility 2 | 1 . 1 . Weapon 1 | 1 . . . Parts Attached 45 | 8 11 11 15 Power 4 | 1 1 . 2 Engine 4 | 1 1 . 2 Core . | . . . . Reactor . | . . . . Propulsion 9 | 2 2 4 1 Treads 2 | . . 2 . Leg 5 | 2 2 1 . Wheel 1 | . . 1 . Hover . | . . . . Flight 1 | . . . 1 Utility 15 | 3 3 2 7 Device 6 | 3 1 . 2 Storage . | . . . . Processor 2 | . 1 . 1 Hackware 1 | . . . 1 Protection 6 | . 1 2 3 Artifact . | . . . . Weapon 17 | 2 5 5 5 Energy Gun 11 | 2 2 3 4 Energy Cannon . | . . . . Ballistic Gun 3 | . 1 1 1 Ballistic Cannon 1 | . . 1 . Launcher . | . . . . Special Weapon . | . . . . Impact Weapon 2 | . 2 . . Slashing Weapon . | . . . . Piercing Weapon . | . . . . Special Melee Weapon . | . . . . Unidentified Prototypes 2 | . . . 2 Parts Lost 1 | . 1 . . Power . | . . . . Propulsion . | . . . . Utility 1 | . 1 . . Weapon . | . . . . Highest Loss Streak 1 | . 1 . . To Critical Strikes . | . . . . Average Slot Usage (%) 86 | . 99 87 63 Engine 12 | . 13 12 10 Treads 13 | . . 20 . Leg 8 | . 27 3 . Device 14 | . 19 12 14 Processor 2 | . 6 . 5 Protection 8 | . 1 11 6 Energy Gun 12 | . 22 9 8 Ballistic Gun 6 | . . 8 5 Ballistic Cannon 4 | . . 6 . Impact Weapon 1 | . 4 . . Naked Turns . | . . . . Heaviest Build 32 | 10 13 32 30 Greatest Support 40 | 20 20 40 40 Greatest Overweight (x) 2 | 2 . 1 . Average Overweight (x) . | . . . . Largest Inventory Capacity 4 | 2 2 4 4 Average Capacity 2 | 2 2 2 4 Most Carried 4 | 1 2 4 4 Average Carried 2 | . 1 2 3 Final Capacity 4 | 2 2 4 4 Final Carried 4 | 1 1 4 4 Class Distribution -------------------- 37% | Mutant 34% | Derelict-Mutant 16% | Subdweller-Mutant 5% | Scout 5% | Hacker-Scout Dominant Class ---------------- Mutant | -10/Materials Derelict-Mutant | -10/Subcaves Scout | -8/Materials Resources | -11 -10 -10 -8 ----------- Run | Yrd Mat Sub Mat Matter Collected 1435 | 280 105 752 298 Remotely 183 | 183 . . . Salvage Created 2380 | 139 206 799 1236 Parts 174 | 9 20 73 72 Haulers Intercepted 1 | . . . 1 Recyclers Shooed . | . . . . Parts Field Recycled . | . . . . Retrieved Matter . | . . . . Parts Self-Destructed 16 | . . 16 . Prevented . | . . . . Kills | -11 -10 -10 -8 ------- Run | Yrd Mat Sub Mat Combat Hostiles Destroyed 59 | . 12 24 23 Guns 45 | . 9 19 17 Cannons 5 | . . 5 . AOE 4 | . . . 4 Classes Destroyed 13 | 2 4 4 3 Worker 1 | . 1 . . Tunneler 2 | 2 . . . Hauler 1 | . . . 1 Recycler 1 | 1 . . . Turret 2 | . . 2 . Watcher 2 | . 1 . 1 Swarmer 9 | . 3 4 2 Grunt 23 | . 9 1 13 Duelist 1 | . . . 1 Sentry 7 | . . 1 6 Hunter 1 | . . . 1 Artisan 1 | . . 1 . Subdweller 18 | . . 18 . Best Kill Streak 11 | 3 5 6 11 Combat Bots Only 11 | . 4 4 11 Max Kills in Single Turn 3 | 1 1 1 3 Gunslinging . | . . . . Exploded 3 | . . . 3 Melee . | . . . . Uniques/NPCs Destroyed . | . . . . Combat | -11 -10 -10 -8 -------- Run | Yrd Mat Sub Mat Hostile Shots Fired 348 | . 93 132 123 Missed 103 | . 18 47 38 Damage Taken 3627 | . 845 1634 1148 Core 2448 | . 617 979 852 Absorbed by Shields 279 | . . . 279 Redirected to Core 2073 | . 488 864 721 Redirected to Shielding 33 | . . . 33 Regen/Repaired (Parts) 37 | . . . 37 Core Remaining (%) 69 | 100 . 39 . Volleys Fired 264 | 5 43 131 85 Largest 2 | 2 2 2 2 Hottest 120 | 90 100 120 100 Shots Fired 429 | 10 66 217 136 Gun 355 | 10 66 143 136 Cannon 74 | . . 74 . Launcher . | . . . . Special . | . . . . Kinetic 180 | . . 142 38 Thermal 151 | 10 66 75 . Explosive . | . . . . Electromagnetic 98 | . . . 98 Robot Hit Streak 24 | 6 9 24 13 Robot Miss Streak 4 | 1 2 4 3 Penetration Max . | . . . . Secondary Targets . | . . . . Shots Hit Robots 282 | 8 45 133 96 Core Hits 117 | 4 20 50 43 Critical Kills 2 | . . 2 . Critical Parts Destroyed 2 | . 1 1 . Critical Strikes 16 | . 7 5 4 Burn 6 | . 6 . . Destroy 4 | . . 4 . Blast 1 | . . 1 . Corrupt 4 | . . . 4 Smash 1 | . 1 . . Melee Attacks 14 | . 14 . . Impact 14 | . 14 . . Slashing . | . . . . Piercing . | . . . . Sneak Attacks . | . . . . Combat Hostiles . | . . . . Follow-up Attacks . | . . . . Damage Inflicted 5188 | 93 735 2507 1853 Guns 4009 | 93 484 1854 1578 Cannons 653 | . . 653 . Explosions 275 | . . . 275 Melee 251 | . 251 . . Ramming . | . . . . Kinetic 1865 | . . 1551 314 Thermal 1808 | 93 484 956 275 Explosive . | . . . . Electromagnetic 1264 | . . . 1264 Impact 251 | . 251 . . Slashing . | . . . . Piercing . | . . . . Highest Corruption . | . . . . Average Corruption . | . . . . Corruption Purged . | . . . . Corruption Blocked . | . . . . Overload Shots . | . . . . Overflow Damage 59 | . 59 . . Projectiles . | . . . . Explosions . | . . . . Melee 59 | . 59 . . Knockbacks 10 | . 4 6 . Impact 4 | . 4 . . Kinetic 6 | . . 6 . Secondary . | . . . . Self-Inflicted Damage 102 | . . . 102 Shots 2 | . . . 2 Rammed . | . . . . Targets Rammed . | . . . . Kicked . | . . . . Crushed . | . . . . Highest Temperature 301 | 60 301 16 222 Average Temperature 74 | 33 95 7 70 Received Heat Transfer 1078 | . 441 276 361 Effects 1 | . 1 . . Energy Bleed 1 | . 1 . . Siege Activations . | . . . . Robots Corrupted 2 | . . . 2 Combat Hostiles 2 | . . . 2 Parts Fried 10 | . 2 . 8 Impact Corruptions 5 | . 5 . . Robots Melted . | . . . . Combat Hostiles . | . . . . Parts Melted 6 | . 4 2 . Heat Transferred 3610 | 236 1814 1260 300 Parts Sabotaged . | . . . . Parts Stolen . | . . . . Parts Stripped . | . . . . Power Chain Reactions 3 | . . . 3 Alert | -11 -10 -10 -8 ------- Run | Yrd Mat Sub Mat Peak Influence 922 | 15 206 . 922 Initial 225 | . 9 . 225 Average 213 | 5 94 . 428 Maximum Alert Level 3 | . 1 . 3 Low Security (%) 59 | 100 88 . 7 Level 1 24 | . 11 . 48 Level 2 9 | . . . 27 Level 3 6 | . . . 17 Level 4 . | . . . . Level 5 . | . . . . High Security . | . . . . Max Security . | . . . . Squads Dispatched 7 | . 3 . 4 Investigation 6 | . 3 . 3 Extermination . | . . . . Reinforcement 1 | . . . 1 Assault . | . . . . Garrison . | . . . . Intercept . | . . . . Searches Triggered . | . . . . Construction Impeded . | . . . . Haulers Reinforced . | . . . . Active Scanning Responses . | . . . . Cargo Convoy Interrupts . | . . . . Stealth | -11 -10 -10 -8 --------- Run | Yrd Mat Sub Mat Distress Signals 4 | . 1 . 3 Communications Jammed . | . . . . Distress Signals . | . . . . Times Spotted 90 | . 15 40 35 Peak Tracking Total 15 | . 5 6 15 Tactical Retreats 9 | . . 3 6 Traps | -11 -10 -10 -8 ------- Run | Yrd Mat Sub Mat Traps Triggered 1 | . 1 . . Indirectly . | . . . . Trap Hack Attempts . | . . . . Triggered . | . . . . Disarmed . | . . . . Reprogrammed 1 | . . . 1 Reused 1 | . . . 1 Traps Extracted . | . . . . Installed . | . . . . Triggered 1 | . . . 1 Machines | -11 -10 -10 -8 ---------- Run | Yrd Mat Sub Mat Machines Disabled 5 | . . 3 2 Max in Single Turn 1 | . . 1 1 Machines Repaired . | . . . . Machines Dismantled . | . . . . Machines Sabotaged . | . . . . Overloaded Fab Kills . | . . . . Hacking | -11 -10 -10 -8 --------- Run | Yrd Mat Sub Mat Machines Accessed 13 | . 7 . 6 Terminals 9 | . 5 . 4 Fabricators . | . . . . Repair Stations 2 | . 1 . 1 Recycling Units 2 | . 1 . 1 Scanalyzers . | . . . . Garrison Access . | . . . . Total Hacks 49 | . 22 . 27 Successful 31 | . 11 . 20 Failed 17 | . 10 . 7 Catastrophic 3 | . 3 . . Database Lockouts 1 | . 1 . . Manual 27 | . 12 . 15 Terminals 37 | . 15 . 22 Fabricators . | . . . . Repair Stations 6 | . 3 . 3 Recycling Units 6 | . 4 . 2 Scanalyzers . | . . . . Garrison Access . | . . . . Terminal Hacks 16 | . 7 . 9 Robot Schematic 1 | . 1 . . Robot Analysis 2 | . 2 . . Prototype ID Bank 2 | . . . 2 Branch Access Points 1 | . 1 . . Emergency Access Points 1 | . 1 . . Terminal Index 1 | . . . 1 Alert Level 1 | . . . 1 Unreport Threat 1 | . . . 1 Locate Traps 3 | . . . 3 Reprogram Traps 1 | . . . 1 Zone Layout 2 | . 2 . . Fabricator Hacks . | . . . . Repair Station Hacks 3 | . . . 3 Scan Component 1 | . . . 1 Repair 1 | . . . 1 Refit 1 | . . . 1 Recycling Unit Hacks 2 | . 1 . 1 Report Inventory 2 | . 1 . 1 Scanalyzer . | . . . . Garrison Access Hacks . | . . . . Unauthorized Hacks 10 | . 3 . 7 Terminals 8 | . 2 . 6 Track 3 | . 1 . 2 Assimilate 1 | . . . 1 Botnet 2 | . 1 . 1 Disrupt 1 | . . . 1 Operators 1 | . . . 1 Fabricators . | . . . . Repair Stations . | . . . . Recycling Units 2 | . 1 . 1 Tunnel 2 | . 1 . 1 Scanalyzers . | . . . . Garrison Access . | . . . . Data Cores Recovered . | . . . . Used . | . . . . Hacking Detections 11 | . 5 . 6 Full Trace Events 4 | . 2 . 2 Feedback Events . | . . . . Feedback Blocked . | . . . . Robot Schematics Acquired 1 | . 1 . . Robots Built . | . . . . Authchips . | . . . . Time . | . . . . Total Robot Build Rating . | . . . . Part Schematics Acquired . | . . . . Parts Built . | . . . . Authchips . | . . . . Time . | . . . . Total Part Build Rating . | . . . . Parts Repaired 1 | . . . 1 Time 26 | . . . 26 Parts Recycled . | . . . . Recycled Matter . | . . . . Retrieved Matter . | . . . . Retrieved Components . | . . . . Parts Scanalyzed . | . . . . Part Schematics Acquired . | . . . . Parts Damaged . | . . . . Bothacking | -11 -10 -10 -8 ------------ Run | Yrd Mat Sub Mat Used RIF Installer . | . . . . Robots Hacked . | . . . . Non-combat . | . . . . Combat . | . . . . Robot Hacks Applied . | . . . . Relay Couplers Released . | . . . . Fabnet Peak Effective % . | . . . . Robots Rewired . | . . . . Allies Hacked . | . . . . Hacks Repelled . | . . . . Allies | -11 -10 -10 -8 -------- Run | Yrd Mat Sub Mat Total Allies 1 | . . . 1 Largest Group 1 | . . . 1 Highest-Rated Group 10 | . . . 10 Highest-Rated Ally 10 | . . . 10 Total Orders . | . . . . Ally Attacks . | . . . . Total Damage . | . . . . Kills . | . . . . Allies Corrupted . | . . . . Allies Melted . | . . . . Intel | -11 -10 -10 -8 ------- Run | Yrd Mat Sub Mat Robot Analysis Total 2 | . 2 . . Derelict Logs Recovered 2 | . . 2 . Drone Launches . | . . . . Drone Recoveries . | . . . . Exploration | -11 -10 -10 -8 ------------- Run | Yrd Mat Sub Mat Turns Passed 4943 | 78 1007 3222 636 Spaces Moved 2786 | 45 503 1705 533 Core 8 | 8 . . . Treads 1438 | . . 1426 12 Legs 731 | 37 503 191 . Wheels 88 | . . 88 . Hover . | . . . . Flight 521 | . . . 521 Fastest Speed 40 | 50 120 120 40 Average Speed 129 | 112 120 159 42 Slowest Speed 240 | 150 120 240 160 Overloaded Moves . | . . . . Propulsion Burnouts . | . . . . Robots Hopped 3 | . . . 3 Cave-ins Triggered . | . . . . Exploration Rate (%) 53 | 5 85 84 41 Regions Visited 3 Branch Regions 1 Pre-discovered Areas 3 | . 1 1 1 Known Exits Taken . | . . . . Unknown Exits Taken 3 | 1 1 1 . Scrap Searched 19 | . . 19 . Spaces Dug . | . . . . Terrain Destroyed 12 | . . . 12 Melee . | . . . . Projectile . | . . . . AOE 12 | . . . 12 Terrain Rammed . | . . . . Walls Destroyed . | . . . . Machines Disabled . | . . . . Actions | -11 -10 -10 -8 --------- Run | Yrd Mat Sub Mat Total 3691 | 59 815 2007 810 Wait 437 | . 206 82 149 Move 2777 | 44 502 1704 527 Hop 3 | . . . 3 Pick Up 13 | 1 2 6 4 Fast Attach 37 | 8 8 8 13 Attach 1 | . . . 1 Detach 1 | . . . 1 Swap 7 | . 3 3 1 Drop 38 | 1 9 16 12 Fire 264 | 5 43 131 85 Melee 14 | . 14 . . Ram . | . . . . Kick . | . . . . Crush . | . . . . Escape Stasis . | . . . . Rewire . | . . . . Trap . | . . . . Miscellaneous 99 | . 28 57 14 Route ------- -11/Scrapyard -10/Materials (discovered 5 exits: *Mat x3 / Min / [*Sub]) -10/Subcaves (discovered 2 exits: *Mat / [*Rec]) -8/Materials (discovered 1 exit: [*Fac]) History --------- Turn | Location | Event 1 | -11/Scrapyard | Upgraded with Propulsion slot (x1) 1 | -11/Scrapyard | Upgraded with Utility slot (x1) 1 | -11/Scrapyard | Upgraded with Weapon slot (x1) 13 | -11/Scrapyard | Discovered new exit (range 14) 79 | -11/Scrapyard | Entered Materials 81 | -10/Materials | Discovered new exit (range 9) 310 | -10/Materials | Build established: Mutant 496 | -10/Materials | Discovered new exit (range 3) 499 | -10/Materials | Identified exit to Materials 559 | -10/Materials | Central database locked down 623 | -10/Materials | Discovered exit to Materials (range 15) 650 | -10/Materials | Identified exit to Mines 737 | -10/Materials | Core integrity fell below 50% 751 | -10/Materials | Reached level 2 817 | -10/Materials | Discovered exit to Materials (range 14) 1086 | -10/Materials | Entered Subcaves 1273 | -10/Subcaves | Upgraded with Utility slot (x1) 1560 | -10/Subcaves | Build established: Subdweller-Mutant 1591 | -10/Subcaves | Shifting Twisted Machinery released Sub. Monowheel 1607 | -10/Subcaves | Shifting Twisted Machinery released Mak. Hacking Suite 1640 | -10/Subcaves | A swath of the cavern ceiling suddenly collapsed 2054 | -10/Subcaves | Disturbed a concealed Subdweller 2059 | -10/Subcaves | Disturbed a concealed Subdweller 2378 | -10/Subcaves | Build established: Mutant 2943 | -10/Subcaves | Build established: Derelict-Mutant 3009 | -10/Subcaves | Shifting Twisted Machinery released Battle Cannon 3015 | -10/Subcaves | Shifting Twisted Machinery released Sub. Machine Gun 3194 | -10/Subcaves | Discovered new exit (range 11) 3859 | -10/Subcaves | Reached level 3 3886 | -10/Subcaves | Discovered new exit (range 10) 3986 | -10/Subcaves | Visited 4L-MR0's lab 4067 | -10/Subcaves | Found Prototype Flight Unit 4308 | -10/Subcaves | Entered Materials 4309 | -8/Materials | Core integrity fell below 50% 4310 | -8/Materials | Reached level 4 4328 | -8/Materials | Upgraded with Propulsion slot (x2) 4329 | -8/Materials | Identified Flightbrick 4330 | -8/Materials | Attached Flightbrick, gained temporary slots: Utility x3 4363 | -8/Materials | Discovered new exit (range 11) 4492 | -8/Materials | Repaired Lgt. Armor Plating 4513 | -8/Materials | Core integrity fell below 20% 4592 | -8/Materials | Reached level 5 4598 | -8/Materials | Upgraded with Power slot (x1) 4833 | -8/Materials | Reached level 6 4910 | -8/Materials | Destroyed 11 combat bots 4944 | -8/Materials | Destroyed by G-47 Trooper with Particle Gun Last Messages --------------- 04817_ S-10 Pest destroyed. 04831_ Critical hit (Burn: +27). 04833_ Reached level 6. 04833_ Heat Sink fried. 04833_ Y-45 Defender destroyed. 04850_ L-31 Rogue suffers critical hit (Burn). 04852_ L-31 Rogue destroyed. 04858_ G-47 Trooper destroyed. 04872_ Door malfunctions. 04879_ G-47 Trooper IFF system glitched. 04883_ G-47 Trooper misfires. 04885_ G-47 Trooper system terminally corrupted. 04885_ Lgt. Nuclear Core fried. 04886_ U-05 Engineer repairs door. 04887_ G-50 Soldier misfires. 04889_ G-50 Soldier system terminally corrupted. 04889_ Hvy. Laser fried. 04943_ Chain reaction triggered in Lgt. Nuclear Core. 04943_ G-47 Trooper destroyed. Map ----- +----------------------------------------------------+ | | | | | ???????????????????????????????????????? | | ???????????????????????????????????????? | | ???????????????????????????????????????? | | ???????????????????????????????????????? | | ?????????????????????????"""???????????? | | ?????????????????????????"""???????????? | | ?????????????????????????"""???????????? | | ??????????????????????#? ?? ?? ???#???? | | ????????????????????####?""" "#?#????? | | ???????????????????####? """ T?? ????# | | ?????????????????####### """ "? ##??? | | ???????????????#?######? ? + #???? | | ??????????????#??##?#########?##? ?##?? | | #??#?????????#??##########?###### ###?# | | ????????????#?######?########### ?? ###? | | ?#??????????######?###*= # #### | | ?##?#??????##?####??###!% """ # ?#### | | ?#????????? ####??##?#%[ """ # ###? | | ?#???" ??""" ########## """ ## #?#?# | | #????"? ?""" ?## # ##? #?##? | | #?#??"???"""?### T !/ #"S[=]!!!## ?#### | | #????T?? ? ### !/ #" [*]!%=## #?### | | ##?##" ??""" ### */ #= %]!%/## ?###? | | ##??#"???""" ## #[%@%![**## ?#?##? | | #??#?" ?""" ###? ##;;%!;#### ?##### | | ????#???? ###+##+#+##%!%g;#### ##### | | ##????###+###### =*[*==[= ##### | | ####### =!o%== ##?#? | | #########+## [ ##+######### | | !##?## ?! ######? ### | | ##### ###?#? ? ?### | | ####### #?##?! """ ####?# ?### | | ##?##?########### R" #####? ### | | ??????#?????#?## """ ###### ##? | | ?""" ?#???????#?#[ ? ###?## """ ? ?#? | | """ ?????????############?# """ ?#?? | | """?????#???????#####?###### """ ????? | | ??? ?????????#????######?#### ???????? | | ????????#??#??????#?############???????? | | ??????????????????#???#????????????????? | | ???#???????????????????????????????????? | | ??#??????????#???????#?????#???????????? | | ??#????????????????????????????????????? | | ??#????#?#?????????????????????????????? | | ???????????????????????????????????????? | | ???????????????"""?????????????????????? | | ?#?????????????"T"?????????????????????? | | ???????????????????????????????????????? | +----------------------------------------------------+ Best States ------------- Heat Dissipation 49 Energy Generation 23 Energy Capacity 265 Matter Stores 300 Matter Capacity 300 Sight Range 17 Terrain Scan Range 16 Terrain Scan Density 110 Armor Coverage 800 Resistance: KI 10 Propulsion Shielding 33 Evasion (%) 62 Recoil Reduction 2 Offensive Hacking 15 Defensive Hacking 5 Item Schematics ----------------- None Robot Schematics ------------------ M-13 Machinist | -10/Materials | Hacked Fabricated ------------ Nothing Alien Tech Used ----------------- None Achievements -------------- None Challenges ------------ None RPGLIKE | -11 -10 -10 -8 --------- Run | Yrd Mat Sub Mat Levels Raised 5 | . 1 1 3 XP Earned 11492 | 3000 1715 1800 4977 XP Spent 8770 | 2250 450 2550 3520 Upgrades 27 | 5 3 3 16 Power Slot 1 | . . . 1 Propulsion Slot 3 | 1 . . 2 Utility Slot 2 | 1 . 1 . Weapon Slot 1 | 1 . . . Core Integrity 6 | . . . 6 Heat Dissipation 4 | . . . 4 Energy Generation 1 | . . . 1 Mass Support 1 | . . . 1 Inventory Capacity 4 | 2 . 2 . Sight Range 1 | . . . 1 Terrain Scan Density 1 | . 1 . . Hack Attack % 1 | . 1 . . Hack Defense % 1 | . 1 . . Protomatter Created 944 | . 252 397 295 Integrity Restored 1807 | . 564 937 306 Core 1539 | . 531 702 306 Parts 268 | . 33 235 . Protomatter Decayed 175 | . 60 115 . Game ------ Seed FireCoordinationInjector Manual? 0 Play Time 00:38:32 Cumulative 598.6 hours Start 2024.03.13 @ 23:22:46 End 2024.03.13 @ 23:59:44 Sessions 1 Manual Loads 0 Difficulty Rogue Special Mode Winter2019/RPGLIKE Game No. 228 Rogue 206 Adventurer 3 Explorer 19 Win Type - Total 13 Types 8/2/1/1/0/1/0/0/0 Lore% 88 Gallery% 95 Achievement% 82 Wizard Run 0 Options --------- Layout 2 ASCII 0 Keyboard 0 Movement Numpad Keybinds 0 Fullscreen 2 Font 24/Smallcaps Map View 50x44 Zoom Use 0% Tactical HUD 1 Map Filters NONE Filters NONE Steam X RUN: 552227a2-3268-4171-9cdc-357af738831e